fUSD/lending_fUSD_20250514
["ID","MTS","AMOUNT","RATE_DAILY","PERIOD"]
[361036845,1747209180984,-151.0,0.000249,7]
[361036846,1747209180993,-151.0,0.000249,7]
[361036847,1747209181003,-151.0,0.000249,7]
[361036848,1747209181012,-198.56573352,0.000249,2]
[361036849,1747209181022,-624434.474152,0.000249,2]
[361036850,1747209181031,-1000.0,0.00025,7]
[361036851,1747209181041,-200.61005834,0.00025,2]
[361036852,1747209181050,-1725.18507162,0.00025,2]
[361036853,1747209181060,-257.26744149,0.00025,2]
[361036854,1747209181069,-341.20821821,0.00025,2]
[361036855,1747209181079,-200.0,0.00025,2]
[361036856,1747209181089,-1764.69842745,0.00025,2]
[361036857,1747209181098,-558.79539735,0.00025,2]
[361036858,1747209181108,-1028.8276365,0.00025,2]
[361036859,1747209181118,-161.68856622,0.00025,2]
[361036860,1747209181128,-3317.29464226,0.00025,5]
[361036861,1747209181137,-993.88717325,0.00025,2]
[361036862,1747209181147,-150.0,0.00025,2]
[361036863,1747209181156,-3000.0,0.00025,5]
[361036864,1747209181166,-1483.55207799,0.00025,5]
[361036865,1747209181176,-2942.0978247,0.00025,2]
[361036866,1747209181186,-4010.70858759,0.00025,2]
[361036867,1747209181196,-200.0,0.00025,2]
[361036868,1747209181206,-152.0,0.00025,2]
[361036869,1747209181216,-152.0,0.00025,2]
[361036870,1747209181226,-6022.39,0.00025,2]
[361036871,1747209181236,-152.0,0.00025,2]
[361036872,1747209181246,-3266.91547582,0.000251,2]
[361036873,1747209181256,-1005.9346062,0.000251,7]
[361036874,1747209181265,-225.18697532,0.00025206,2]
[361036875,1747209181275,-200.0,0.0002525,2]
[361036876,1747209181285,-280.0,0.000253,10]
[361036877,1747209181297,-150.0,0.00025379,2]
[361036878,1747209181307,-162.18,0.000255,8]
[361036879,1747209181317,-223.44,0.00025548,2]
[361036880,1747209181327,-679.58486608,0.00025563,2]
[361036881,1747209181336,-225.18697532,0.00025563,2]
[361036882,1747209181346,-309.29654756,0.00025563,2]
[361036883,1747209181356,-152.0,0.00025658,3]
[361036884,1747209181365,-302.42262923,0.00025701,2]
[361036885,1747209181375,-233.51889341,0.00025754,2]
[361036886,1747209181390,-12016.0,0.00025863,2]
[361036887,1747209181400,-150.0,0.00025955,2]
[361036888,1747209181410,-479.2948022,0.00025973,2]
[361036889,1747209181420,-579.96277501,0.0002599,2]
[361036890,1747209181430,-920.40728625,0.00026,2]
[361036891,1747209181440,-308.35920231,0.00026,2]
[361036892,1747209181450,-875.72467379,0.00026,2]
[361036893,1747209181460,-1043.0128677,0.00026,27]
[361036894,1747209181470,-4369.79166049,0.00026,2]
[361036895,1747209181480,-850.0,0.00026,2]
[361036896,1747209181490,-4000.0,0.00026,4]
[361036897,1747209181500,-651.66,0.00026027,2]
[361036898,1747209181510,-479.2948022,0.00026055,2]
[361036899,1747209181520,-23818.05,0.000261,7]
[361036900,1747209181530,-1333.0,0.00026137,120]
[361036901,1747209181541,-479.2948022,0.00026164,2]
[361036902,1747209181552,-2916.65,0.000262,7]
[361036903,1747209181562,-479.2948022,0.00026274,2]
[361036904,1747209181573,-242.15909246,0.00026302,2]
[361036905,1747209181583,-152.0,0.00026336,4]
[361036906,1747209181594,-479.2948022,0.00026384,2]
[361036907,1747209181603,-512.0,0.0002639,2]
[361036908,1747209181613,-470.15,0.00026456,2]
[361036909,1747209181623,-479.2948022,0.00026493,2]
[361036910,1747209181633,-152.0,0.000265,20]
[361036911,1747209181643,-150.0,0.00026532,2]
[361036912,1747209181652,-1250.0,0.00026575,2]
[361036913,1747209181662,-479.2948022,0.00026575,2]
[361036914,1747209181672,-1000.0,0.00026676,2]
[361036915,1747209181682,-479.2948022,0.00026685,2]
[361036916,1747209181693,-479.2948022,0.00026795,2]
[361036917,1747209181702,-251.11897888,0.0002685,2]
[361036918,1747209181712,-479.2948022,0.00026904,2]
[361036919,1747209181722,-704.72950612,0.00026932,2]
[361036920,1747209181732,-233.51889341,0.00026932,2]
[361036921,1747209181741,-320.74051982,0.00026932,2]
[361036922,1747209181750,-250.0,0.00027,2]
[361036923,1747209181760,-1000.22530687,0.00027,2]
[361036924,1747209181769,-209.19230673,0.00027,2]
[361036925,1747209181779,-1800.0,0.00027,28]
[361036926,1747209181791,-2815.189341,0.00027,2]
[361036927,1747209181801,-152.0,0.00027013,5]
[361036928,1747209181810,-479.2948022,0.00027014,2]
[361036929,1747209181820,-442.27468605,0.00027031,2]
[361036930,1747209181830,-150.0,0.00027109,2]
[361036931,1747209181841,-479.2948022,0.00027123,2]
[361036932,1747209181850,-3555.94,0.00027123,2]
[361036933,1747209181860,-500.0,0.00027397,2]
[361036934,1747209181870,-500.0,0.00027397,2]
[361036935,1747209181881,-500.0,0.00027397,2]
[361036936,1747209181891,-500.0,0.00027397,2]
[361036937,1747209181902,-562.18015153,0.00027397,2]
[361036938,1747209181913,-450.0,0.00027397,30]
[361036939,1747209181923,-450.0,0.00027397,30]
[361036940,1747209181934,-450.0,0.00027397,30]
[361036941,1747209181943,-450.0,0.00027397,30]
[361036942,1747209181954,-450.0,0.00027397,30]
[361036943,1747209181964,-450.0,0.00027397,30]
[361036944,1747209181974,-450.0,0.00027397,30]
[361036945,1747209181983,-450.0,0.00027397,30]
[361036946,1747209181993,-450.0,0.00027397,30]
[361036947,1747209182003,-450.0,0.00027397,30]
[361036948,1747209182012,-450.0,0.00027397,30]
[361036949,1747209182022,-450.0,0.00027397,30]
[361036950,1747209182031,-450.0,0.00027397,30]
[361036951,1747209182042,-321.04701095,0.00027397,30]
[361036952,1747209182051,-500.0,0.00027397,2]
[361036953,1747209182061,-500.0,0.00027397,2]
[361036954,1747209182071,-651.66,0.00027397,2]
[361036955,1747209182081,-1057.79,0.00027397,2]
[361036956,1747209182091,-1057.79,0.00027397,2]
[361036957,1747209182101,-1057.79,0.00027397,2]
[361036958,1747209182112,-1057.79,0.00027397,2]
[361036959,1747209182122,-1057.79,0.00027397,2]
[361036960,1747209182131,-1057.79,0.00027397,2]
[361036961,1747209182142,-1057.79,0.00027397,2]
[361036962,1747209182152,-1057.79,0.00027397,2]
[361036963,1747209182162,-1057.79,0.00027397,2]
[361036964,1747209182172,-1057.79,0.00027397,2]
[361036965,1747209182182,-1057.79,0.00027397,2]
[361036966,1747209182192,-1057.79,0.00027397,2]
[361036967,1747209182201,-1057.79,0.00027397,2]
[361036968,1747209182211,-1057.79,0.00027397,2]
[361036969,1747209182222,-1057.79,0.00027397,2]
[361036970,1747209182232,-1057.79,0.00027397,2]
[361036971,1747209182242,-1057.79,0.00027397,2]
[361036972,1747209182252,-1057.79,0.00027397,2]
[361036973,1747209182262,-1057.79,0.00027397,2]
[361036974,1747209182272,-1057.79,0.00027397,2]
[361036975,1747209182281,-1057.79,0.00027397,2]
[361036976,1747209182292,-1057.79,0.00027397,2]
[361036977,1747209182302,-1057.79,0.00027397,2]
[361036978,1747209182311,-1057.8059448,0.00027397,2]
[361036979,1747209182321,-1356.45992082,0.00027397,7]
[361036980,1747209182330,-205.42541544,0.00027397,2]
[361036981,1747209182340,-581.09292019,0.00027397,2]
[361036982,1747209182349,-3546.0,0.00027397,2]
[361036983,1747209182359,-3546.0,0.00027397,2]
[361036984,1747209182368,-3546.0,0.00027397,2]
[361036985,1747209182378,-3546.0,0.00027397,2]
[361036986,1747209182389,-3546.0,0.00027397,2]
[361036987,1747209182398,-3546.0,0.00027397,2]
[361036988,1747209182407,-3546.0,0.00027397,2]
[361036989,1747209182420,-3546.0,0.00027397,2]
[361036990,1747209182429,-3546.0,0.00027397,2]
[361036991,1747209182438,-3546.0,0.00027397,2]
[361036992,1747209182448,-3546.0,0.00027397,2]
[361036993,1747209182458,-3546.0,0.00027397,2]
[361036994,1747209182468,-3546.0,0.00027397,2]
[361036995,1747209182478,-3546.0,0.00027397,2]
[361036996,1747209182489,-3546.0,0.00027397,2]
[361036997,1747209182499,-3546.0,0.00027397,2]
[361036998,1747209182508,-3546.0,0.00027397,2]
[361036999,1747209182518,-3546.0,0.00027397,2]
[361037000,1747209182528,-3546.0,0.00027397,2]
[361037001,1747209182539,-3546.0,0.00027397,2]
[361037002,1747209182549,-3546.0,0.00027397,2]
[361037003,1747209182559,-3546.0,0.00027397,2]
[361037004,1747209182569,-3546.0,0.00027397,2]
[361037005,1747209182579,-3546.03352766,0.00027397,2]
[361037006,1747209182590,-539.4,0.00027397,2]
[361037007,1747209182599,-539.4,0.00027397,2]
[361037008,1747209182610,-539.4,0.00027397,2]
[361037009,1747209182619,-539.4,0.00027397,2]
[361037010,1747209182629,-539.4,0.00027397,2]
[361037011,1747209182639,-539.4,0.00027397,2]
[361037012,1747209182649,-539.4,0.00027397,2]
[361037013,1747209182659,-539.4,0.00027397,2]
[361037014,1747209182669,-539.4,0.00027397,2]
[361037015,1747209182679,-539.4,0.00027397,2]
[361037016,1747209182688,-539.4,0.00027397,2]
[361037017,1747209182698,-539.4,0.00027397,2]
[361037018,1747209182708,-539.4,0.00027397,2]
[361037019,1747209182718,-539.4,0.00027397,2]
[361037020,1747209182728,-539.4,0.00027397,2]
[361037021,1747209182738,-539.4,0.00027397,2]
[361037022,1747209182748,-539.4,0.00027397,2]
[361037023,1747209182758,-539.4,0.00027397,2]
[361037024,1747209182767,-539.4,0.00027397,2]
[361037025,1747209182778,-539.4,0.00027397,2]
[361037026,1747209182788,-539.4,0.00027397,2]
[361037027,1747209182798,-539.4,0.00027397,2]
[361037028,1747209182807,-539.4,0.00027397,2]
[361037029,1747209182818,-539.52610395,0.00027397,2]
[361037030,1747209182827,-2000.0,0.00027397,30]
[361037031,1747209182835,-2000.0,0.00027397,30]
[361037032,1747209182845,-2000.0,0.00027397,30]
[361037033,1747209182855,-1293.6635834,0.00027397,30]
[361037034,1747209182865,-150.0,0.00027397,2]
[361037035,1747209182876,-150.0,0.00027397,2]
[361037036,1747209182886,-200.0,0.00027397,60]
[361037037,1747209182897,-1000.0,0.00027397,2]
[361037038,1747209182908,-344.898242,0.00027397,7]
[361037039,1747209182918,-344.898242,0.00027397,7]
[361037040,1747209182929,-344.89825,0.00027397,7]
[361037041,1747209182939,-400.299718,0.00027397,7]
[361037042,1747209182950,-400.299718,0.00027397,7]
[361037043,1747209182960,-400.299718,0.00027397,7]
[361037044,1747209182971,-400.299718,0.00027397,7]
[361037045,1747209182980,-400.299718,0.00027397,7]
[361037046,1747209182990,-400.299718,0.00027397,7]
[361037047,1747209183001,-400.299718,0.00027397,7]
[361037048,1747209183011,-400.299718,0.00027397,7]
[361037049,1747209183022,-400.299718,0.00027397,7]
[361037050,1747209183033,-400.299718,0.00027397,7]
[361037051,1747209183046,-400.299718,0.00027397,7]
[361037052,1747209183057,-400.299718,0.00027397,7]
[361037053,1747209183067,-400.299718,0.00027397,7]
[361037054,1747209183078,-400.299718,0.00027397,7]
[361037055,1747209183088,-400.299718,0.00027397,7]
[361037056,1747209183099,-400.299718,0.00027397,7]
[361037057,1747209183108,-400.299718,0.00027397,7]
[361037058,1747209183118,-400.299718,0.00027397,7]
[361037059,1747209183128,-400.299718,0.00027397,7]
[361037060,1747209183138,-400.29972345,0.00027397,7]
[361037061,1747209183148,-1000.0,0.00027397,2]
[361037062,1747209183158,-500.36,0.00027397,2]
[361037063,1747209183168,-9567.79,0.00027397,2]
[361037064,1747209183178,-1743.15,0.00027397,15]
[361037065,1747209183188,-151.0,0.00027397,7]
[361037066,1747209183199,-151.0,0.00027397,7]
[361037067,1747209183208,-151.0,0.00027397,7]
[361037068,1747209183219,-151.0,0.00027397,7]
[361037069,1747209183229,-151.0,0.00027397,7]
[361037070,1747209183239,-230.506758,0.00027397,7]
[361037071,1747209183250,-700.0,0.00027397,2]
[361037072,1747209183260,-192.29,0.00027397,30]
[361037073,1747209183270,-300.0,0.00027397,2]
[361037074,1747209183280,-151.0,0.00027397,7]
[361037075,1747209183292,-151.0,0.00027397,7]
[361037076,1747209183302,-151.0,0.00027397,7]
[361037077,1747209183312,-151.0,0.00027397,7]
[361037078,1747209183322,-151.0,0.00027397,7]
[361037079,1747209183333,-151.0,0.00027397,7]
[361037080,1747209183559,-249.430713,0.00027397,7]
[361037081,1747209183571,-643.46,0.00027397,2]
[361037082,1747209183583,-153.50455476,0.00027397,5]
[361037083,1747209183593,-500.0,0.00027397,4]
[361037084,1747209183604,-260.4103811,0.00027398,2]
[361037085,1747209183614,-23818.05,0.000274,7]
[361037086,1747209183624,-219204.0,0.000274,2]
[361037087,1747209183634,-500.0,0.000274,2]
[361037088,1747209183644,-501.49161589,0.00027424,2]
[361037089,1747209183654,-518.68319779,0.00027424,2]
[361037090,1747209183664,-194.24818975,0.000275,2]
[361037091,1747209183673,-530.54023096,0.000275,2]
[361037092,1747209183683,-2916.65,0.000275,7]
[361037093,1747209183693,-1000.0,0.00027534,7]
[361037094,1747209183703,-1000.0,0.00027534,7]
[361037095,1747209183713,-226.85537956,0.00027616,2]
[361037096,1747209183723,-1000.0,0.00027671,7]
[361037097,1747209183733,-1000.0,0.00027671,7]
[361037098,1747209183744,-150.0,0.00027686,2]
[361037099,1747209183755,-152.0,0.0002769,6]
[361037100,1747209183765,-151.0,0.00027698,7]
[361037101,1747209183775,-151.0,0.00027698,7]
[361037102,1747209183784,-151.0,0.00027698,7]
[361037103,1747209183796,-151.0,0.00027698,7]
[361037104,1747209183806,-203.416657,0.00027698,7]
[361037105,1747209183817,-151.0,0.00027698,7]
[361037106,1747209183827,-151.0,0.00027698,7]
[361037107,1747209183837,-151.0,0.00027698,7]
[361037108,1747209183847,-151.0,0.00027698,7]
[361037109,1747209183857,-151.0,0.00027698,7]
[361037110,1747209183867,-151.0,0.00027698,7]
[361037111,1747209183876,-151.0,0.00027698,7]
[361037112,1747209183886,-151.0,0.00027698,7]
[361037113,1747209183896,-167.348227,0.00027698,7]
[361037114,1747209183906,-1000.0,0.00027698,2]
[361037115,1747209183916,-1000.0,0.00027698,2]
[361037116,1747209183926,-1000.0,0.00027698,2]
[361037117,1747209183936,-1000.0,0.00027698,2]
[361037118,1747209183947,-1000.0,0.00027698,2]
[361037119,1747209183956,-1000.0,0.00027698,2]
[361037120,1747209183966,-1000.0,0.00027698,2]
[361037121,1747209183976,-1000.0,0.00027698,2]
[361037122,1747209183987,-1000.0,0.00027698,2]
[361037123,1747209183997,-1000.0,0.00027698,2]
[361037124,1747209184007,-1000.0,0.00027698,2]
[361037125,1747209184016,-1000.0,0.00027698,2]
[361037126,1747209184026,-1000.0,0.00027698,2]
[361037127,1747209184036,-1000.0,0.00027698,2]
[361037128,1747209184047,-1000.0,0.00027698,2]
[361037129,1747209184057,-1000.0,0.00027698,2]
[361037130,1747209184067,-1000.0,0.00027698,2]
[361037131,1747209184077,-1000.0,0.00027698,2]
[361037132,1747209184087,-1000.0,0.00027698,2]
[361037133,1747209184098,-1000.0,0.00027698,2]
[361037134,1747209184107,-1000.0,0.00027698,2]
[361037135,1747209184117,-1000.0,0.00027698,2]
[361037136,1747209184127,-1000.0,0.00027698,2]
[361037137,1747209184137,-626.50828754,0.00027698,2]
[361037138,1747209184147,-263.08,0.000277,31]
[361037139,1747209184157,-263.08,0.000277,31]
[361037140,1747209184167,-263.08,0.000277,31]
[361037141,1747209184177,-263.08,0.000277,31]
[361037142,1747209184187,-263.08,0.000277,31]
[361037143,1747209184197,-263.08,0.000277,31]
[361037144,1747209184208,-263.08,0.000277,31]
[361037145,1747209184219,-263.08,0.000277,31]
[361037146,1747209184229,-263.08,0.000277,31]
[361037147,1747209184239,-263.08,0.000277,31]
[361037148,1747209184249,-263.08,0.000277,31]
[361037149,1747209184259,-263.08,0.000277,31]
[361037150,1747209184269,-263.08,0.000277,31]
[361037151,1747209184279,-263.08,0.000277,31]
[361037152,1747209184291,-263.08,0.000277,31]
[361037153,1747209184301,-263.08,0.000277,31]
[361037154,1747209184311,-263.08,0.000277,31]
[361037155,1747209184321,-263.08,0.000277,31]
[361037156,1747209184332,-263.08,0.000277,31]
[361037157,1747209184343,-263.08,0.000277,31]
[361037158,1747209184353,-263.08,0.000277,31]
[361037159,1747209184363,-263.08,0.000277,31]
[361037160,1747209184374,-263.08,0.000277,31]
[361037161,1747209184385,-714.98700926,0.000278,4]
[361037162,1747209184395,-1000.0,0.00027808,7]
[361037163,1747209184405,-1000.0,0.00027808,7]
[361037164,1747209184418,-391.0,0.0002783,15]
[361037165,1747209184428,-3000.0,0.00027945,2]
[361037166,1747209184438,-5000.0,0.00027945,2]
[361037167,1747209184448,-2000.0,0.00027945,2]
[361037168,1747209184458,-1000.0,0.00027945,7]
[361037169,1747209184469,-1000.0,0.00027945,7]
[361037170,1747209184478,-1000.0,0.00027945,4]
[361037171,1747209184488,-270.0455652,0.00027946,2]
[361037172,1747209184499,-500.0,0.0002799,7]
[361037173,1747209184509,-277.68,0.00028,2]
[361037174,1747209184519,-1800.0,0.00028,29]
[361037175,1747209184529,-24508.80532331,0.00028,2]
[361037176,1747209184541,-490.17610647,0.00028,2]
[361037177,1747209184551,-999.10170457,0.00028,2]
[361037178,1747209184561,-525.40573878,0.00028,60]
[361037179,1747209184571,-900.0,0.00028,2]
[361037180,1747209184581,-500.0,0.00028,2]
[361037181,1747209184592,-1300.0,0.00028,2]
[361037182,1747209184602,-500.0,0.00028,2]
[361037183,1747209184613,-500.0,0.00028,2]
[361037184,1747209184624,-1300.0,0.00028,2]
[361037185,1747209184634,-500.0,0.00028,2]
[361037186,1747209184644,-1300.0,0.00028,2]
[361037187,1747209184654,-500.0,0.00028,2]
[361037188,1747209184665,-1300.0,0.00028,2]
[361037189,1747209184676,-500.0,0.00028,2]
[361037190,1747209184687,-1300.0,0.00028,2]
[361037191,1747209184697,-500.0,0.00028,2]
[361037192,1747209184707,-500.0,0.00028,2]
[361037193,1747209184718,-500.0,0.00028,2]
[361037194,1747209184728,-1300.0,0.00028,2]
[361037195,1747209184738,-1300.0,0.00028,2]
[361037196,1747209184749,-500.0,0.00028,2]
[361037197,1747209184759,-1300.0,0.00028,2]
[361037198,1747209184769,-1300.0,0.00028,2]
[361037199,1747209184780,-527.46897482,0.00028,2]
[361037200,1747209184792,-1300.0,0.00028,2]
[361037201,1747209184803,-986.60959197,0.00028,2]
[361037202,1747209184814,-1300.0,0.00028,2]
[361037203,1747209184823,-1300.0,0.00028,2]
[361037204,1747209184833,-1300.0,0.00028,2]
[361037205,1747209184843,-810.0,0.00028,2]
[361037206,1747209184853,-164.34624273,0.00028,2]
[361037207,1747209184864,-546.58587986,0.00028,2]
[361037208,1747209184874,-1300.0,0.00028,2]
[361037209,1747209184884,-1300.0,0.00028,2]
[361037210,1747209184894,-1300.0,0.00028,2]
[361037211,1747209184905,-600.0,0.00028,2]
[361037212,1747209184916,-1300.0,0.00028,2]
[361037213,1747209184926,-1300.0,0.00028,2]
[361037214,1747209184936,-600.0,0.00028,2]
[361037215,1747209184946,-1300.0,0.00028,2]
[361037216,1747209184957,-1300.0,0.00028,2]
[361037217,1747209184969,-600.0,0.00028,2]
[361037218,1747209184980,-600.0,0.00028,2]
[361037219,1747209184991,-1300.0,0.00028,2]
[361037220,1747209185001,-1300.0,0.00028,2]
[361037221,1747209185012,-600.0,0.00028,2]
[361037222,1747209185022,-1300.0,0.00028,2]
[361037223,1747209185032,-1300.0,0.00028,2]
[361037224,1747209185046,-600.0,0.00028,2]
[361037225,1747209185056,-1300.0,0.00028,2]
[361037226,1747209185066,-1300.0,0.00028,2]
[361037227,1747209185077,-600.0,0.00028,2]
[361037228,1747209185086,-1300.0,0.00028,2]
[361037229,1747209185096,-1300.0,0.00028,2]
[361037230,1747209185106,-600.0,0.00028,2]
[361037231,1747209185115,-500.0,0.00028,2]
[361037232,1747209185125,-1300.0,0.00028,2]
[361037233,1747209185135,-1300.0,0.00028,2]
[361037234,1747209185144,-500.0,0.00028,2]
[361037235,1747209185154,-600.0,0.00028,2]
[361037236,1747209185165,-500.0,0.00028,2]
[361037237,1747209185176,-1300.0,0.00028,2]
[361037238,1747209185186,-500.0,0.00028,2]
[361037239,1747209185197,-500.0,0.00028,2]
[361037240,1747209185208,-303.91269103,0.00028,2]
[361037241,1747209185219,-600.0,0.00028,2]
[361037242,1747209185229,-500.0,0.00028,2]
[361037243,1747209185239,-1300.0,0.00028,2]
[361037244,1747209185248,-502.00316466,0.00028,2]
[361037245,1747209185258,-500.0,0.00028,2]
[361037246,1747209185267,-1300.0,0.00028,2]
[361037247,1747209185278,-600.0,0.00028,2]
[361037248,1747209185293,-500.0,0.00028,2]
[361037249,1747209185303,-1300.0,0.00028,2]
[361037250,1747209185312,-500.0,0.00028,2]
[361037251,1747209185321,-500.0,0.00028,2]
[361037252,1747209185331,-1300.0,0.00028,2]
[361037253,1747209185341,-500.0,0.00028,2]
[361037254,1747209185350,-600.0,0.00028,2]
[361037255,1747209185360,-1300.0,0.00028,2]
[361037256,1747209185370,-500.0,0.00028,2]
[361037257,1747209185380,-500.0,0.00028,2]
[361037258,1747209185395,-500.0,0.00028,2]
[361037259,1747209185405,-600.0,0.00028,2]
[361037260,1747209185415,-1300.0,0.00028,2]
[361037261,1747209185424,-500.0,0.00028,2]
[361037262,1747209185435,-500.0,0.00028,2]
[361037263,1747209185444,-500.0,0.00028,2]
[361037264,1747209185454,-600.0,0.00028,2]
[361037265,1747209185463,-1300.0,0.00028,2]
[361037266,1747209185473,-1300.0,0.00028,2]
[361037267,1747209185484,-500.0,0.00028,2]
[361037268,1747209185493,-500.0,0.00028,2]
[361037269,1747209185503,-500.0,0.00028,2]
[361037270,1747209185514,-600.0,0.00028,2]
[361037271,1747209185523,-1300.0,0.00028,2]
[361037272,1747209185533,-601.51148889,0.00028,2]
[361037273,1747209185544,-500.0,0.00028,2]
[361037274,1747209185554,-500.0,0.00028,2]
[361037275,1747209185563,-2593.60496879,0.00028,2]
[361037276,1747209185572,-1300.0,0.00028,2]
[361037277,1747209185582,-600.0,0.00028,2]
[361037278,1747209185591,-500.0,0.00028,2]
[361037279,1747209185599,-192.36725155,0.00028,2]
[361037280,1747209185608,-500.0,0.00028,2]
[361037281,1747209185616,-850.45511017,0.00028,2]
[361037282,1747209185625,-500.0,0.00028,2]
[361037283,1747209185633,-600.0,0.00028,2]
[361037284,1747209185642,-500.0,0.00028,2]
[361037285,1747209185650,-500.0,0.00028,2]
[361037286,1747209185659,-600.0,0.00028,2]
[361037287,1747209185668,-1300.0,0.00028,2]
[361037288,1747209185676,-600.0,0.00028,2]
[361037289,1747209185685,-500.0,0.00028,2]
[361037290,1747209185693,-500.0,0.00028,2]
[361037291,1747209185703,-500.0,0.00028,2]
[361037292,1747209185713,-500.0,0.00028,2]
[361037293,1747209185722,-600.0,0.00028,2]
[361037294,1747209185732,-1300.0,0.00028,2]
[361037295,1747209185741,-600.0,0.00028,2]
[361037296,1747209185751,-500.0,0.00028,2]
[361037297,1747209185760,-500.0,0.00028,2]
[361037298,1747209185769,-500.0,0.00028,2]
[361037299,1747209185779,-600.0,0.00028,2]
[361037300,1747209185789,-1300.0,0.00028,2]
[361037301,1747209185798,-980.32636617,0.00028,2]
[361037302,1747209185808,-500.0,0.00028,2]
[361037303,1747209185817,-500.0,0.00028,2]
[361037304,1747209185827,-600.0,0.00028,2]
[361037305,1747209185836,-500.0,0.00028,2]
[361037306,1747209185845,-1300.0,0.00028,2]
[361037307,1747209185856,-500.0,0.00028,2]
[361037308,1747209185865,-600.0,0.00028,2]
[361037309,1747209185874,-1300.0,0.00028,2]
[361037310,1747209185884,-500.0,0.00028,2]
[361037311,1747209185893,-600.0,0.00028,2]
[361037312,1747209185903,-964.45643683,0.00028,2]
[361037313,1747209185912,-1300.0,0.00028,2]
[361037314,1747209185922,-500.0,0.00028,2]
[361037315,1747209185931,-500.0,0.00028,2]
[361037316,1747209185941,-500.0,0.00028,2]
[361037317,1747209185950,-600.0,0.00028,2]
[361037318,1747209185959,-500.0,0.00028,2]
[361037319,1747209185969,-1300.0,0.00028,2]
[361037320,1747209185979,-600.0,0.00028,2]
[361037321,1747209185988,-983.49243873,0.00028,2]
[361037322,1747209185998,-600.0,0.00028,2]
[361037323,1747209186007,-793.7295651,0.00028,2]
[361037324,1747209186017,-875.11083538,0.00028,2]
[361037325,1747209186026,-1300.0,0.00028,2]
[361037326,1747209186036,-500.0,0.00028,2]
[361037327,1747209186048,-644.14340813,0.00028,2]
[361037328,1747209186144,-1300.0,0.00028,2]
[361037329,1747209186154,-500.0,0.00028,2]
[361037330,1747209186164,-500.0,0.00028,2]
[361037331,1747209186173,-1300.0,0.00028,2]
[361037332,1747209186182,-1300.0,0.00028,2]
[361037333,1747209186192,-500.0,0.00028,2]
[361037334,1747209186201,-500.0,0.00028,2]
[361037335,1747209186211,-600.0,0.00028,2]
[361037336,1747209186220,-1300.0,0.00028,2]
[361037337,1747209186230,-500.0,0.00028,2]
[361037338,1747209186239,-601.28086498,0.00028,2]
[361037339,1747209186248,-600.0,0.00028,2]
[361037340,1747209186258,-1300.0,0.00028,2]
[361037341,1747209186267,-600.0,0.00028,2]
[361037342,1747209186277,-1300.0,0.00028,2]
[361037343,1747209186286,-600.0,0.00028,2]
[361037344,1747209186297,-1300.0,0.00028,2]